[Event "3rd Gujarat GM Open 2022"]
[Site "Ahmedabad"]
[Date "2022.04.02"]
[Round "4.1"]
[White "Wagh Suyog"]
[Black "Delgado Ramirez, Neuris"]
[Result "1/2-1/2"]
[ECO "E21"]
[WhiteElo "2232"]
[BlackElo "2615"]
[Annotator "ChessBase"]
[PlyCount "182"]
[EventDate "2022.03.31"]
[EventType "swiss"]
[EventCountry "IND"]
[SourceTitle "playchess.com"]
[Source "ChessBase"]
[SourceQuality "1"]
[TimeControl "5400+30"]

1. d4 {[%emt 0:00:02]} Nf6 {[%emt 0:12:16]} 2. c4 {[%emt 0:00:01]} e6 {[%emt 0:00:07]} 3. Nc3 {[%emt 0:00:19]} Bb4 {[%emt 0:00:26]} 4. e3 {[%emt 0:02:51]} O-O {[%emt 0:01:52]} 5. Bd2 {[%emt 0:03:07]} b6 {[%emt 0:04:39]} 6. Nf3 {[%emt 0:03:46]} c5 {[%emt 0:01:14]} 7. a3 {[%emt 0:05:52]} Bxc3 {[%emt 0:00:39]} 8. Bxc3 {[%emt 0:01:14]} Bb7 {[%emt 0:00:10]} 9. b3 {[%emt 0:05:45]} d6 {[%emt 0:01:12]} 10. Be2 {[%emt 0:10:51]} Nbd7 {[%emt 0:03:00]} 11. O-O {[%emt 0:01:37]} Qe7 {[%emt 0:01:04]} 12. Qc2 {[%emt 0:06:51]} Rac8 {[%emt 0:01:46]} 13. Rac1 {[%emt 0:07:25]} Ne4 {[%emt 0:03:31]} 14. Bb2 {[%emt 0:04:34]} f5 {[%emt 0:03:41]} 15. Bd3 {[%emt 0:03:27]} Ndf6 {[%emt 0:01:07]} 16. Nd2 {[%emt 0:04:35]} Ng5 {[%emt 0:09:34]} 17. f3 {[%emt 0:04:45]} Qe8 {[%emt 0:02:34]} 18. Rce1 {[%emt 0:05:20]} cxd4 {[%emt 0:02:06]} 19. exd4 {[%emt 0:04:12]} Qg6 {[%emt 0:01:20]} 20. Kh1 {[%emt 0:02:32]} Nh5 {[%emt 0:01:21]} 21. Nb1 {[%emt 0:04:07]} Qh6 {[%emt 0:02:01]} 22. Kg1 {[%emt 0:01:23]} Rf6 {[%emt 0:02:56]} 23. Bc1 {[%emt 0:08:21]} Rg6 {[%emt 0:00:30]} 24. Nc3 {[%emt 0:07:14]} Nf4 {[%emt 0:04:07]} 25. Kh1 {[%emt 0:01:27]} Qh4 {[%emt 0:01:28]} 26. Bxf4 {[%emt 0:00:32]} Qxf4 {[%emt 0:00:09]} 27. Ne2 {[%emt 0:00:55]} Qh4 {[%emt 0:00:13]} 28. Qd2 {[%emt 0:00:33]} Rh6 {[%emt 0:02:45]} 29. Qf4 {[%emt 0:00:17]} Qh5 {[%emt 0:00:04]} 30. Qg3 {[%emt 0:00:45]} Qg6 {[%emt 0:37:38]} 31. Nf4 {[%emt 0:00:43]} Qf6 {[%emt 0:00:00]} 32. Bb1 {[%emt 0:00:30]} Rf8 {[%emt 0:00:00]} 33. a4 {[%emt 0:00:32]} Kh8 {[%emt 0:00:00]} 34. Rd1 {[%emt 0:00:28]} Nf7 {[%emt 0:00:00]} 35. Rfe1 {[%emt 0:00:17]} Bc8 {[%emt 0:00:00]} 36. c5 {[%emt 0:00:29]} g5 {[%emt 0:00:00]} 37. Nd3 {[%emt 0:00:07]} f4 {[%emt 0:00:00]} 38. Qf2 {[%emt 0:00:13]} dxc5 {[%emt 0:00:00]} 39. Ne5 {[%emt 0:01:19]} Nxe5 {[%emt 0:00:00]} 40. dxe5 {[%emt 0:00:36]} Qg7 {[%emt 0:00:00]} 41. Rd6 {[%emt 0:00:21]} Bb7 {[%emt 0:00:00]} 42. Qd2 {[%emt 0:00:24]} Bd5 {[%emt 0:00:00]} 43. Be4 {[%emt 0:00:41]} Qxe5 {[%emt 0:00:00]} 44. Rd7 {[%emt 0:00:01]} Bxe4 {[%emt 0:00:00]} 45. Rxe4 {[%emt 0:00:19]} Qf6 {[%emt 0:00:00]} 46. Qe2 {[%emt 0:01:14]} Rd8 {[%emt 0:00:00]} 47. Rxd8+ {[%emt 0:00:32]} Qxd8 {[%emt 0:00:00]} 48. h3 {[%emt 0:00:16]} Qe7 {[%emt 0:00:00]} 49. b4 {[%emt 0:00:11]} cxb4 {[%emt 0:00:00]} 50. Qb2+ {[%emt 0:00:01]} Rf6 {[%emt 0:00:00]} 51. Rxb4 {[%emt 0:00:02]} e5 {[%emt 0:00:00]} 52. Rb5 {[%emt 0:00:15]} Re6 {[%emt 0:00:00]} 53. Rd5 {[%emt 0:02:11]} Kg7 {[%emt 0:00:00]} 54. Qd2 {[%emt 0:00:11]} Qf6 {[%emt 0:00:00]} 55. Qd3 {[%emt 0:00:09]} Kh6 {[%emt 0:00:00]} 56. Rd7 {[%emt 0:00:57]} Qg6 {[%emt 0:00:00]} 57. Qa3 {[%emt 0:00:34]} Qf6 {[%emt 0:06:49]} 58. Qd3 {[%emt 0:00:14]} e4 {[%emt 0:00:32]} 59. fxe4 {[%emt 0:00:26]} Qa1+ {[%emt 0:00:19]} 60. Kh2 {[%emt 0:00:24]} Qe5 {[%emt 0:01:37]} 61. Kg1 {[%emt 0:01:05]} a5 {[%emt 0:01:01]} 62. Rd4 {[%emt 0:00:31]} f3 {[%emt 0:00:19]} 63. Qe3 {[%emt 0:00:31]} Rf6 {[%emt 0:00:59]} 64. h4 {[%emt 0:00:34]} Kh5 {[%emt 0:03:07]} 65. Qxg5+ {[%emt 0:00:29]} Qxg5 {[%emt 0:00:08]} 66. hxg5 {[%emt 0:00:01]} Kxg5 {[%emt 0:00:56]} 67. Rd5+ {[%emt 0:00:38]} Kg4 {[%emt 0:00:17]} 68. gxf3+ {[%emt 0:00:46]} Rxf3 {[%emt 0:00:10]} 69. e5 {[%emt 0:00:31]} Kf5 {[%emt 0:00:29]} 70. Rb5 {[%emt 0:00:30]} Rf4 {[%emt 0:01:36]} 71. Rxb6 {[%emt 0:00:10]} Rxa4 {[%emt 0:00:06]} 72. e6 {[%emt 0:00:43]} Kf6 {[%emt 0:00:12]} 73. Ra6 {[%emt 0:00:35]} Ra2 {[%emt 0:01:05]} 74. Kh1 {[%emt 0:00:37]} h5 {[%emt 0:00:12]} 75. Kg1 {[%emt 0:00:17]} h4 {[%emt 0:00:38]} 76. Kh1 {[%emt 0:00:16]} h3 {[%emt 0:00:07]} 77. Kg1 {[%emt 0:00:10]} a4 {[%emt 0:01:03]} 78. Kh1 {[%emt 0:00:06]} a3 {[%emt 0:00:53]} 79. Kg1 {[%emt 0:01:26]} Rg2+ {[%emt 0:00:43]} 80. Kh1 {[%emt 0:00:17]} Rg3 {[%emt 0:00:34]} 81. Kh2 {[%emt 0:00:46]} Re3 {[%emt 0:00:02]} 82. Ra8 {[%emt 0:00:39]} Rb3 {[%emt 0:01:14]} 83. Ra6 {[%emt 0:00:10]} Ke7 {[%emt 0:00:03]} 84. Kg1 {[%emt 0:00:48]} Rg3+ {[%emt 0:00:41]} 85. Kh2 {[%emt 0:00:08]} Re3 {[%emt 0:00:03]} 86. Kg1 {[%emt 0:00:53]} Kf6 {[%emt 0:00:07]} 87. Kh2 {[%emt 0:00:28]} Kf5 {[%emt 0:00:16]} 88. e7 {[%emt 0:00:33]} Kg4 {[%emt 0:00:17]} 89. Ra4+ {[%emt 0:00:14]} Kf5 {[%emt 0:00:05]} 90. Rxa3 {[%emt 0:00:32]} Rxe7 {[%emt 0:00:06]} 91. Kxh3 {[%emt 0:00:06]} Ke5 {[%emt 0:03:44]} 1/2-1/2

[Event "3rd Gujarat GM Open 2022"]
[Site "Ahmedabad"]
[Date "2022.04.02"]
[Round "4.2"]
[White "Fawzy, Adham"]
[Black "Kaustuv, Kundu"]
[Result "1/2-1/2"]
[ECO "B48"]
[WhiteElo "2476"]
[BlackElo "2308"]
[Annotator "ChessBase"]
[PlyCount "135"]
[EventDate "2022.03.31"]
[EventType "swiss"]
[EventCountry "IND"]
[SourceTitle "playchess.com"]
[Source "ChessBase"]
[SourceQuality "1"]
[TimeControl "5400+30"]

1. e4 {[%emt 0:06:17]} c5 {[%emt 0:00:11]} 2. Nf3 {[%emt 0:00:03]} e6 {[%emt 0:00:05]} 3. d4 {[%emt 0:00:05]} cxd4 {[%emt 0:00:05]} 4. Nxd4 {[%emt 0:00:05]} Nc6 {[%emt 0:00:05]} 5. Nc3 {[%emt 0:00:08]} Qc7 {[%emt 0:00:07]} 6. Be3 {[%emt 0:01:06]} a6 {[%emt 0:00:06]} 7. g4 {[%emt 0:00:44]} b5 {[%emt 0:04:02]} 8. Nxc6 {[%emt 0:00:09]} dxc6 {[%emt 0:00:23]} 9. Qd2 {[%emt 0:09:21]} e5 {[%emt 0:05:03]} 10. g5 {[%emt 0:05:00]} Be6 {[%emt 0:07:22]} 11. f4 {[%emt 0:03:50]} exf4 {[%emt 0:00:00]} 12. Bxf4 {[%emt 0:00:24]} Qb6 {[%emt 0:00:58]} 13. O-O-O {[%emt 0:01:08]} Bc5 {[%emt 0:02:28]} 14. h4 {[%emt 0:04:19]} Ne7 {[%emt 0:02:16]} 15. h5 {[%emt 0:01:11]} O-O {[%emt 0:07:08]} 16. Bd3 {[%emt 0:05:01]} Qa5 {[%emt 0:06:27]} 17. Rdf1 {[%emt 0:08:52]} b4 {[%emt 0:04:35]} 18. Nb1 {[%emt 0:01:55]} Qxa2 {[%emt 0:14:40]} 19. Be5 {[%emt 0:13:11]} Qa5 {[%emt 0:12:04]} 20. h6 {[%emt 0:02:29]} g6 {[%emt 0:04:48]} 21. Bg7 {[%emt 0:00:49]} Rfd8 {[%emt 0:00:43]} 22. Rf3 {[%emt 0:00:41]} Qc7 {[%emt 0:06:51]} 23. Rhf1 {[%emt 0:01:00]} Nc8 {[%emt 0:00:30]} 24. Qe2 {[%emt 0:03:05]} Nb6 {[%emt 0:00:11]} 25. Nd2 {[%emt 0:00:17]} Be7 {[%emt 0:04:46]} 26. e5 {[%emt 0:07:46]} Bxg5 {[%emt 0:03:04]} 27. Kb1 {[%emt 0:00:29]} Bxd2 {[%emt 0:02:43]} 28. Qxd2 {[%emt 0:00:01]} c5 {[%emt 0:03:46]} 29. Qf4 {[%emt 0:01:22]} Nd5 {[%emt 0:01:01]} 30. Qh4 {[%emt 0:07:08]} Nc3+ {[%emt 0:03:34]} 31. Kc1 {[%emt 0:00:56]} c4 {[%emt 0:02:02]} 32. Bf6 {[%emt 0:05:43]} cxd3 {[%emt 0:00:29]} 33. Bxd8 {[%emt 0:00:01]} d2+ {[%emt 0:00:07]} 34. Kxd2 {[%emt 0:00:15]} Rxd8+ {[%emt 0:00:07]} 35. Rd3 {[%emt 0:00:30]} Rxd3+ {[%emt 0:01:03]} 36. cxd3 {[%emt 0:00:21]} Nd5 {[%emt 0:00:11]} 37. Rc1 {[%emt 0:00:45]} Qb6 {[%emt 0:01:05]} 38. d4 {[%emt 0:00:35]} Kf8 {[%emt 0:01:20]} 39. Rc5 {[%emt 0:00:21]} b3 {[%emt 0:01:23]} 40. Qe4 {[%emt 0:02:42]} Qd8 {[%emt 0:00:18]} 41. Ke2 {[%emt 0:04:52]} a5 {[%emt 0:00:52]} 42. Qf3 {[%emt 0:02:01]} a4 {[%emt 0:00:40]} 43. Kf1 {[%emt 0:00:28]} a3 {[%emt 0:01:26]} 44. Qxb3 {[%emt 0:00:19]} a2 {[%emt 0:00:20]} 45. Qa3 {[%emt 0:00:53]} Ne7 {[%emt 0:00:54]} 46. Ra5 {[%emt 0:00:53]} Bd5 {[%emt 0:00:35]} 47. b3 {[%emt 0:00:54]} Qd7 {[%emt 0:00:25]} 48. Ke1 {[%emt 0:01:46]} Qg4 {[%emt 0:00:23]} 49. Ra7 {[%emt 0:00:58]} Qh4+ {[%emt 0:00:25]} 50. Ke2 {[%emt 0:00:43]} Qe4+ {[%emt 0:00:23]} 51. Kf1 {[%emt 0:00:01]} Qf3+ {[%emt 0:00:28]} 52. Ke1 {[%emt 0:00:06]} Qe3+ {[%emt 0:00:22]} 53. Kf1 {[%emt 0:00:03]} a1=Q+ {[%emt 0:00:46]} 54. Qxa1 {[%emt 0:00:03]} Qxh6 {[%emt 0:00:11]} 55. Qa3 {[%emt 0:00:59]} Qf4+ {[%emt 0:00:10]} 56. Ke1 {[%emt 0:00:05]} Qe3+ {[%emt 0:00:22]} 57. Kf1 {[%emt 0:00:06]} Qg5 {[%emt 0:00:42]} 58. Qc5 {[%emt 0:02:09]} Bxb3 {[%emt 0:01:03]} 59. Ra8+ {[%emt 0:01:27]} Kg7 {[%emt 0:00:07]} 60. Re8 {[%emt 0:00:02]} Qf4+ {[%emt 0:01:03]} 61. Ke2 {[%emt 0:00:26]} Qh2+ {[%emt 0:00:32]} 62. Kd3 {[%emt 0:01:08]} Qg3+ {[%emt 0:00:19]} 63. Kd2 {[%emt 0:00:06]} Qf4+ {[%emt 0:00:45]} 64. Kc3 {[%emt 0:00:14]} Qe3+ {[%emt 0:00:09]} 65. Kb2 {[%emt 0:00:04]} Ba4 {[%emt 0:00:14]} 66. Rxe7 {[%emt 0:00:16]} Qb3+ {[%emt 0:00:05]} 67. Kc1 {[%emt 0:00:12]} Qd1+ {[%emt 0:00:03]} 68. Kb2 {[%emt 0:00:01]} 1/2-1/2

[Event "3rd Gujarat GM Open 2022"]
[Site "Ahmedabad"]
[Date "2022.04.02"]
[Round "4.3"]
[White "Ratnakaran, K.."]
[Black "Mirzoev, Azer"]
[Result "0-1"]
[ECO "C72"]
[WhiteElo "2316"]
[BlackElo "2468"]
[Annotator "ChessBase"]
[PlyCount "106"]
[EventDate "2022.03.31"]
[EventType "swiss"]
[EventCountry "IND"]
[SourceTitle "playchess.com"]
[Source "ChessBase"]
[SourceQuality "1"]
[TimeControl "5400+30"]

1. e4 {[%emt 0:00:03]} e5 {[%emt 0:03:56]} 2. Nf3 {[%emt 0:00:06]} Nc6 {[%emt 0:00:05]} 3. Bb5 {[%emt 0:00:03]} a6 {[%emt 0:00:10]} 4. Ba4 {[%emt 0:00:04]} Nge7 {[%emt 0:00:10]} 5. O-O {[%emt 0:00:20]} d6 {[%emt 0:00:09]} 6. h3 {[%emt 0:00:13]} Bd7 {[%emt 0:00:22]} 7. c3 {[%emt 0:00:07]} g6 {[%emt 0:00:17]} 8. d4 {[%emt 0:00:22]} Bg7 {[%emt 0:00:09]} 9. dxe5 {[%emt 0:00:35]} dxe5 {[%emt 0:00:08]} 10. Bg5 {[%emt 0:00:19]} f6 {[%emt 0:06:42]} 11. Be3 {[%emt 0:00:06]} Be6 {[%emt 0:00:09]} 12. Qc2 {[%emt 0:00:10]} O-O {[%emt 0:03:36]} 13. Nbd2 {[%emt 0:01:00]} Qc8 {[%emt 0:03:11]} 14. Rfd1 {[%emt 0:01:28]} Rd8 {[%emt 0:04:58]} 15. a3 {[%emt 0:02:27]} Bf8 {[%emt 0:03:08]} 16. b4 {[%emt 0:00:07]} Kg7 {[%emt 0:04:42]} 17. Ne1 {[%emt 0:00:31]} b6 {[%emt 0:00:46]} 18. f4 {[%emt 0:00:38]} exf4 {[%emt 0:17:52]} 19. Bxf4 {[%emt 0:00:22]} Ne5 {[%emt 0:00:19]} 20. Bxe5 {[%emt 0:02:13]} fxe5 {[%emt 0:00:27]} 21. Ndf3 {[%emt 0:00:12]} Rxd1 {[%emt 0:05:04]} 22. Rxd1 {[%emt 0:00:05]} c5 {[%emt 0:02:53]} 23. Nxe5 {[%emt 0:02:45]} b5 {[%emt 0:00:44]} 24. Bb3 {[%emt 0:01:11]} c4 {[%emt 0:00:04]} 25. Ba2 {[%emt 0:00:08]} Qc7 {[%emt 0:00:49]} 26. N1f3 {[%emt 0:04:45]} Re8 {[%emt 0:11:23]} 27. Qf2 {[%emt 0:03:04]} Ng8 {[%emt 0:04:30]} 28. Qd4 {[%emt 0:09:55]} Nf6 {[%emt 0:00:10]} 29. Bb1 {[%emt 0:00:08]} Be7 {[%emt 0:01:10]} 30. Rf1 {[%emt 0:02:12]} Rd8 {[%emt 0:01:51]} 31. Qe3 {[%emt 0:01:28]} Re8 {[%emt 0:02:14]} 32. Bc2 {[%emt 0:00:51]} Bc8 {[%emt 0:03:19]} 33. a4 {[%emt 0:05:43]} Bd6 {[%emt 0:03:55]} 34. Nxg6 {[%emt 0:01:51]} hxg6 {[%emt 0:00:41]} 35. e5 {[%emt 0:00:05]} Bxe5 {[%emt 0:01:43]} 36. Qg5 {[%emt 0:00:16]} Qb6+ {[%emt 0:03:22]} 37. Kh1 {[%emt 0:01:05]} Nh7 {[%emt 0:00:53]} 38. Qh4 {[%emt 0:00:02]} Bxc3 {[%emt 0:07:50]} 39. Qg3 {[%emt 0:00:16]} Nf8 {[%emt 0:03:01]} 40. Ng5 {[%emt 0:03:48]} Bf6 {[%emt 0:00:07]} 41. Ne4 {[%emt 0:02:49]} Be5 {[%emt 0:00:08]} 42. Qf3 {[%emt 0:01:03]} Qe6 {[%emt 0:00:38]} 43. axb5 {[%emt 0:03:12]} axb5 {[%emt 0:00:05]} 44. Nc5 {[%emt 0:00:14]} Qf6 {[%emt 0:00:59]} 45. Qe2 {[%emt 0:00:52]} Qe7 {[%emt 0:00:09]} 46. Qd1 {[%emt 0:03:20]} Ne6 {[%emt 0:01:53]} 47. Qd5 {[%emt 0:06:07]} Nxc5 {[%emt 0:01:15]} 48. bxc5 {[%emt 0:00:05]} Qe6 {[%emt 0:00:37]} 49. Qf3 {[%emt 0:00:04]} Qf6 {[%emt 0:00:46]} 50. Qd1 {[%emt 0:01:55]} Qg5 {[%emt 0:00:30]} 51. Qd5 {[%emt 0:01:18]} Kh6 {[%emt 0:00:40]} 52. g4 {[%emt 0:01:20]} Rd8 {[%emt 0:00:56]} 53. Qf7 {[%emt 0:00:43]} Bg7 {[%emt 0:00:39]} 0-1

[Event "3rd Gujarat GM Open 2022"]
[Site "Ahmedabad"]
[Date "2022.04.02"]
[Round "4.4"]
[White "Nigmatov, Ortik"]
[Black "Deshmukh, Anup"]
[Result "1-0"]
[ECO "C87"]
[WhiteElo "2445"]
[BlackElo "2190"]
[Annotator "TA"]
[PlyCount "111"]
[EventDate "2022.03.31"]
[EventType "swiss"]
[EventCountry "IND"]
[SourceTitle "playchess.com"]
[Source "ChessBase"]
[SourceQuality "1"]
[TimeControl "5400+30"]

{[%evp 22,111,40,33,78,79,70,70,81,72,83,52,78,69,87,15,19,22,22,21,46,47,50,51,67,74,134,136,140,133,132,133,136,143,168,168,150,121,202,196,202,198,196,189,174,177,189,166,190,204,196,187,213,170,248,256,279,275,269,263,421,421,568,568,565,563,516,277,270,277,257,249,487,478,470,437,565,563,495,469,805,785,803,791,783,775,754,727,698,537,537,534]} 1. e4 {[%emt 1:31:00]} e5 {[%emt 1:31:00]} 2. Nf3 {[%emt 0:00:30]} Nc6 {[%emt 0:00:30]} 3. Bb5 {[%emt 0:00:30]} d6 {[%emt 0:00:30]} 4. O-O {[%emt 0:00:30]} Nf6 {[%emt 0:00:30]} 5. Re1 {[%emt 0:00:30]} Be7 {[%emt 0:00:30]} 6. d4 {[%emt 0:00:30]} Bd7 {[%emt 0:00:30]} 7. c3 {[%emt 0:00:30]} O-O {[%emt 0:00:30]} 8. Ba4 {[%emt 0:00:30]} a6 {[%emt 0:00:30]} 9. h3 {[%emt 0:00:30]} h6 {[%emt 0:00:30]} 10. Nbd2 {[%emt 0:00:30][%cal Bb1d2,Bd2f1,Bf1g3][%mdl 32]} Re8 {[%emt 0:00:30]} 11. Nf1 {[%emt 0:00:30]} Bf8 {[%emt 0:00:30]} 12. Ng3 {[%emt 0:00:30]} g6 {[%emt 0:00:30] C87: Closed Ruy Lopez: Steinitz-type lines after 6 Re1 d6.} 13. Bc2 {[%emt 0:00:30]} Bg7 {[%emt 0:00:30]} 14. Be3 {[%emt 0:00:30]} Qe7 {[%emt 0:00:30] White is slightly better.} 15. Qd2 {[%emt 0:00:30]} Qf8 {[%emt 0:00:30]} 16. b4 {[%emt 0:00:30]} b6 {[%emt 0:00:30] [#]} 17. a3 $146 {[%emt 0:00:30]} ({Predecessor:} 17. Rab1 a5 18. a3 axb4 19. axb4 Ra2 20. Qc1 Kh7 21. d5 Ne7 22. Bb3 Raa8 23. c4 {0-1 (67) Kwiatkowski,F (2240)-Bellin,R (2405) Blackpool 1988}) 17... Rad8 {[%emt 0:00:30]} 18. dxe5 {[%emt 0:00:30]} (18. Bb3 $16) 18... Nxe5 $11 {[%emt 0:00:30]} 19. Nxe5 {[%emt 0:00:30]} dxe5 {[%emt 0:00:30]} 20. Qe2 {[%emt 0:00:30]} Bb5 {[%emt 0:00:30]} 21. c4 {[%emt 0:00:30]} Bc6 {[%emt 0:00:30]} 22. c5 {[%emt 0:00:30]} Bb5 {[%emt 0:00:30]} 23. Qf3 {[%emt 0:00:30]} Nd7 {[%emt 0:00:30]} ({Black should play} 23... Rb8) 24. cxb6 $1 $16 {[%emt 0:00:30]} cxb6 {[%emt 0:00:30]} 25. Bb3 {[%emt 0:00:30] Inhibits Bc4.} Rc8 {[%emt 0:00:30]} 26. Rac1 {[%emt 0:00:30][%cal Ba1c1,Bc1c3,Bc3c7,Bc7b7,Bb7b6][%mdl 32]} Qe7 {[%emt 0:00:30]} 27. Red1 {[%emt 0:00:30]} Bc6 {[%emt 0:00:30]} 28. h4 {[%emt 0:00:30] And now h5 would win.} h5 {[%emt 0:00:30]} 29. Rc3 {[%emt 0:00:30] 0x0.0022d042ee6cdp-1022s more active pieces.} Nf8 {[%emt 0:00:30] [#]} (29... Bb5 $16 30. Rdc1 Rxc3 31. Rxc3 Nf6) 30. Rdc1 $1 $18 {[%emt 0:00:30]} (30. Bxb6 $6 Ne6 $14) 30... Bb7 {[%emt 0:00:30] [#]} 31. Bg5 $1 {[%emt 0:00:30]} ({Much less strong is} 31. Bxb6 Ne6 $14) 31... Qd7 {[%emt 0:00:30] [#]} 32. Bxf7+ $1 {[%emt 0:00:30][%mdl 512]} Qxf7 {[%emt 0:00:30]} 33. Qxf7+ {[%emt 0:00:30][%mdl 64] Remove Defender} Kxf7 {[%emt 0:00:30]} 34. Rc7+ {[%emt 0:00:30]} Kg8 {[%emt 0:00:30] Strongly threatening ...Rb8.} 35. Rxb7 {[%emt 0:00:30] Rxc8 is the strong threat.} Rxc1+ {[%emt 0:00:30]} 36. Bxc1 {[%emt 0:00:30]} Rd8 {[%emt 0:00:30]} 37. Be3 {[%emt 0:00:30]} Rd1+ {[%emt 0:00:30]} (37... Rd3 $142 38. Rxb6 (38. Bxb6 Rxa3 39. Nf1 Ra4 $16) 38... Rxa3) 38. Nf1 {[%emt 0:00:30]} Ra1 {[%emt 0:00:30]} 39. Rxb6 {[%emt 0:00:30]} ({Don't take} 39. Bxb6 $6 Ne6 40. g3 Nd4 41. Bxd4 exd4 $18) 39... Rxa3 {[%emt 0:00:30]} 40. Nd2 {[%emt 0:00:30]} a5 $2 {[%emt 0:00:30]} (40... Nd7 {was worth a try.}) 41. b5 {[%emt 0:00:30]} a4 {[%emt 0:00:30]} 42. Ra6 {[%emt 0:00:30]} Ra1+ {[%emt 0:00:30]} 43. Kh2 {[%emt 0:00:30]} a3 {[%emt 0:00:30]} 44. Nb3 {[%emt 0:00:30]} Rb1 {[%emt 0:00:30]} 45. Rxa3 {[%emt 0:00:30] Black must now prevent b6.} Nd7 {[%emt 0:00:30]} 46. Ra8+ {[%emt 0:00:30]} Nf8 $2 {[%emt 0:00:30]} (46... Kh7 {was necessary.}) 47. Nc5 {[%emt 0:00:30] Hoping for Ne6. White is clearly winning.} Rxb5 {[%emt 0:00:30]} 48. Ne6 {[%emt 0:00:30] aiming for Nxf8.} Kf7 {[%emt 0:00:30]} 49. Ng5+ {[%emt 0:00:30]} Kg8 {[%emt 0:00:30]} 50. Rc8 {[%emt 0:00:30]} Ra5 {[%emt 0:00:30]} (50... Rb4 $142 51. Bc5 Rc4) 51. Bc5 {[%emt 0:00:30]} Ra6 {[%emt 0:00:30]} 52. Be7 {[%emt 0:00:30]} Rb6 {[%emt 0:00:30]} 53. f3 {[%emt 0:00:30]} Ra6 {[%emt 0:00:30]} 54. Kg3 {[%emt 0:00:30]} Rb6 {[%emt 0:00:30]} 55. Ra8 {[%emt 0:00:30]} Rc6 {[%emt 0:00:30]} 56. Kf2 {[%emt 0:00:30] Weighted Error Value: White=0.11 (very precise) /Black=0.31} 1-0

[Event "3rd Gujarat GM Open 2022"]
[Site "Ahmedabad"]
[Date "2022.04.02"]
[Round "4.5"]
[White "Balaji Sekar"]
[Black "Vignesh N R"]
[Result "1/2-1/2"]
[ECO "C54"]
[WhiteElo "1189"]
[BlackElo "2444"]
[Annotator "NA"]
[PlyCount "76"]
[EventDate "2022.03.31"]
[EventType "swiss"]
[EventCountry "IND"]
[SourceTitle "playchess.com"]
[Source "ChessBase"]
[SourceQuality "1"]
[TimeControl "5400+30"]

1. e4 {[%emt 0:00:04]} e5 {[%emt 0:00:57]} 2. Nf3 {[%emt 0:00:12]} Nc6 {[%emt 0:00:06]} 3. Bc4 {[%emt 0:01:37]} Bc5 {[%emt 0:00:07]} 4. O-O {[%emt 0:00:55]} Nf6 {[%emt 0:00:05]} 5. d3 {[%emt 0:00:14]} d6 {[%emt 0:01:42]} 6. c3 {[%emt 0:00:11]} a6 {[%emt 0:02:36]} 7. Bb3 {[%emt 0:02:58]} h6 {[%emt 0:00:30]} 8. Re1 {[%emt 0:04:23]} O-O {[%emt 0:01:42]} 9. h3 {[%emt 0:02:34]} Re8 {[%emt 0:00:27]} 10. Nbd2 {[%emt 0:03:40]} Be6 {[%emt 0:00:20]} 11. Bxe6 {[%emt 0:01:26]} Rxe6 {[%emt 0:01:33]} 12. Nf1 {[%emt 0:01:10]} d5 {[%emt 0:00:46]} 13. Ng3 {[%emt 0:17:07]} Qd7 {[%emt 0:04:48]} 14. Qc2 {[%emt 0:05:13]} Rd8 {[%emt 0:01:06]} 15. Be3 {[%emt 0:01:31]} Bxe3 {[%emt 0:12:36]} 16. Rxe3 {[%emt 0:00:05]} dxe4 {[%emt 0:03:23]} 17. dxe4 {[%emt 0:00:15]} g6 {[%emt 0:01:49]} 18. Ree1 {[%emt 0:04:26]} Rd6 {[%emt 0:00:21]} 19. a4 {[%emt 0:11:55]} Kg7 {[%emt 0:06:40]} 20. Qb3 {[%emt 0:04:18]} a5 {[%emt 0:09:08]} 21. Qc4 {[%emt 0:02:35]} Nh7 {[%emt 0:02:44]} 22. Nf1 {[%emt 0:02:09]} Ng5 {[%emt 0:02:06]} 23. Nxg5 {[%emt 0:02:27]} hxg5 {[%emt 0:00:03]} 24. Ne3 {[%emt 0:00:08]} Qe6 {[%emt 0:15:19]} 25. Qxe6 {[%emt 0:02:59]} Rxe6 {[%emt 0:00:02]} 26. Red1 {[%emt 0:01:42]} Red6 {[%emt 0:01:40]} 27. Rxd6 {[%emt 0:00:02]} Rxd6 {[%emt 0:00:03]} 28. Nc4 {[%emt 0:00:12]} Rd8 {[%emt 0:00:46]} 29. Kf1 {[%emt 0:00:23]} Kf6 {[%emt 0:04:08]} 30. Ke2 {[%emt 0:00:36]} Ke6 {[%emt 0:00:36]} 31. Rd1 {[%emt 0:01:59]} Ra8 {[%emt 0:00:24]} 32. Na3 {[%emt 0:06:51]} Rc8 {[%emt 0:06:07]} 33. Nb5 {[%emt 0:00:19]} Nb8 {[%emt 0:00:10]} 34. Na3 {[%emt 0:11:20]} Na6 {[%emt 0:00:22]} 35. Nc4 {[%emt 0:01:23]} b6 {[%emt 0:00:05]} 36. f3 {[%emt 0:02:09]} f6 {[%emt 0:23:13]} 37. Ra1 {[%emt 0:02:24]} Nc5 {[%emt 0:00:00]} 38. Kd1 {[%emt 0:00:49]} Nb7 {[%emt 0:00:00]} 1/2-1/2